fUSD/lending_fUSD_20250519
["ID","MTS","AMOUNT","RATE_DAILY","PERIOD"]
[361596932,1747630246536,-500.0,0.00013807,2]
[361596933,1747630246545,-500.0,0.00013807,2]
[361596934,1747630246554,-922.344954,0.00013808,2]
[361596935,1747630246563,-3205.30973,0.00013808,2]
[361596936,1747630246572,-1030.419309,0.00013808,2]
[361596937,1747630246580,-304.63156361,0.00013808,2]
[361596938,1747630246589,-405.95380563,0.00013808,2]
[361596939,1747630246598,-400.0,0.00013808,2]
[361596940,1747630246608,-400.0,0.00013808,2]
[361596941,1747630246617,-419.06,0.00013808,2]
[361596942,1747630246628,-400.0,0.00013808,2]
[361596943,1747630246637,-400.0,0.00013808,2]
[361596944,1747630246646,-400.0,0.00013808,2]
[361596945,1747630246655,-400.0,0.00013808,2]
[361596946,1747630246664,-508.05,0.00013808,2]
[361596947,1747630246672,-612.01,0.00013808,2]
[361596948,1747630246681,-400.0,0.00013808,2]
[361596949,1747630246690,-400.0,0.00013808,2]
[361596950,1747630246699,-400.0,0.00013808,2]
[361596951,1747630246708,-557.85,0.00013808,2]
[361596952,1747630246716,-459.93,0.00013808,2]
[361596953,1747630246725,-400.0,0.00013808,2]
[361596954,1747630246734,-401.54,0.00013808,2]
[361596955,1747630246743,-400.0,0.00013808,2]
[361596956,1747630246752,-400.0,0.00013808,2]
[361596957,1747630246761,-524.98,0.00013808,2]
[361596958,1747630246770,-400.0,0.00013808,2]
[361596959,1747630246779,-400.0,0.00013808,2]
[361596960,1747630246788,-423.4,0.00013808,2]
[361596961,1747630246797,-400.0,0.00013808,2]
[361596962,1747630246806,-400.0,0.00013808,2]
[361596963,1747630246815,-400.0,0.00013808,2]
[361596964,1747630246824,-400.0,0.00013808,2]
[361596965,1747630246833,-400.0,0.00013808,2]
[361596966,1747630246842,-400.0,0.00013808,2]
[361596967,1747630246851,-493.65,0.00013808,2]
[361596968,1747630246860,-400.0,0.00013808,2]
[361596969,1747630246870,-414.07298416,0.00013808,2]
[361596970,1747630246880,-400.0,0.00013808,2]
[361596971,1747630246889,-400.0,0.00013808,2]
[361596972,1747630246899,-400.0,0.00013808,2]
[361596973,1747630246908,-400.0,0.00013808,2]
[361596974,1747630246918,-400.0,0.00013808,2]
[361596975,1747630246927,-400.0,0.00013808,2]
[361596976,1747630246936,-400.0,0.00013808,2]
[361596977,1747630246945,-214.58748636,0.00013808,2]
[361596978,1747630246954,-400.0,0.00013808,2]
[361596979,1747630246963,-400.0,0.00013808,2]
[361596980,1747630246972,-400.0,0.00013808,2]
[361596981,1747630246981,-557.53,0.00013808,2]
[361596982,1747630246990,-400.0,0.00013808,2]
[361596983,1747630246999,-412.41,0.00013808,2]
[361596984,1747630247009,-400.0,0.00013808,2]
[361596985,1747630247017,-400.0,0.00013808,2]
[361596986,1747630247026,-632.1,0.00013808,2]
[361596987,1747630247035,-400.0,0.00013808,2]
[361596988,1747630247046,-635.15,0.00013808,2]
[361596989,1747630247055,-518.28,0.00013808,2]
[361596990,1747630247065,-747.33,0.00013808,2]
[361596991,1747630247074,-602.86,0.00013808,2]
[361596992,1747630247083,-400.0,0.00013808,2]
[361596993,1747630247094,-400.0,0.00013808,2]
[361596994,1747630247103,-400.0,0.00013808,2]
[361596995,1747630247112,-400.0,0.00013808,2]
[361596996,1747630247122,-427.25,0.00013808,2]
[361596997,1747630247132,-400.0,0.00013808,2]
[361596998,1747630247142,-460.5,0.00013808,2]
[361596999,1747630247152,-400.0,0.00013808,2]
[361597000,1747630247161,-965.06,0.00013808,2]
[361597001,1747630247170,-830.58,0.00013808,2]
[361597002,1747630247179,-400.0,0.00013808,2]
[361597003,1747630247188,-541.44,0.00013808,2]
[361597004,1747630247197,-400.0,0.00013808,2]
[361597005,1747630247207,-400.0,0.00013808,2]
[361597006,1747630247216,-400.0,0.00013808,2]
[361597007,1747630247226,-627.24,0.00013808,2]
[361597008,1747630247235,-400.0,0.00013808,2]
[361597009,1747630247244,-628.37,0.00013808,2]
[361597010,1747630247253,-400.0,0.00013808,2]
[361597011,1747630247262,-400.0,0.00013808,2]
[361597012,1747630247271,-400.0,0.00013808,2]
[361597013,1747630247280,-770.44150144,0.00013808,2]
[361597014,1747630247829,-36.90849856,0.00013808,2]
[361597015,1747630247838,-413.38722521,0.00013808,2]
[361597016,1747630247849,-47.42277479,0.00013808,2]
[361597017,1747630247859,-400.0,0.00013808,2]
[361597018,1747630247867,-30.98722521,0.00013808,2]
[361597019,1747630247921,-488.72277479,0.00013808,2]
[361597020,1747630247930,-400.0,0.00013808,2]
[361597021,1747630247939,-1117.18,0.00013808,2]
[361597022,1747630247949,-400.0,0.00013808,2]
[361597023,1747630247958,-400.0,0.00013808,2]
[361597024,1747630247967,-253.71795855,0.00013808,2]
[361597025,1747630247976,-515.17,0.00013808,2]
[361597026,1747630247985,-400.0,0.00013808,2]
[361597027,1747630247994,-400.0,0.00013808,2]
[361597028,1747630248003,-467.45,0.00013808,2]
[361597029,1747630248012,-400.0,0.00013808,2]
[361597030,1747630248022,-876.36,0.00013808,2]
[361597031,1747630248032,-400.0,0.00013808,2]
[361597032,1747630248042,-400.0,0.00013808,2]
[361597033,1747630248054,-540.1,0.00013808,2]
[361597034,1747630248063,-400.0,0.00013808,2]
[361597035,1747630248072,-400.0,0.00013808,2]
[361597036,1747630248083,-1069.26,0.00013808,2]
[361597037,1747630248092,-400.0,0.00013808,2]
[361597038,1747630248102,-423.95,0.00013808,2]
[361597039,1747630248111,-573.81,0.00013808,2]
[361597040,1747630248122,-400.0,0.00013808,2]
[361597041,1747630248131,-613.87,0.00013808,2]
[361597042,1747630248141,-133.23918022,0.00013808,2]
[361597043,1747630249012,-284.98081978,0.00013808,2]
[361597044,1747630249022,-400.0,0.00013808,2]
[361597045,1747630249032,-511.43,0.00013808,2]
[361597046,1747630249043,-400.0,0.00013808,2]
[361597047,1747630249054,-754.48,0.00013808,2]
[361597048,1747630249064,-400.0,0.00013808,2]
[361597049,1747630249073,-400.0,0.00013808,2]
[361597050,1747630249083,-698.67,0.00013808,2]
[361597051,1747630249094,-595.05,0.00013808,2]
[361597052,1747630249104,-726.2,0.00013808,2]
[361597053,1747630249113,-630.53,0.00013808,2]
[361597054,1747630249125,-400.0,0.00013808,2]
[361597055,1747630249135,-400.0,0.00013808,2]
[361597056,1747630249144,-400.0,0.00013808,2]
[361597057,1747630249154,-401.32,0.00013808,2]
[361597058,1747630249163,-400.0,0.00013808,2]
[361597059,1747630249173,-401.02,0.00013808,2]
[361597060,1747630249182,-456.0,0.00013808,2]
[361597061,1747630249192,-953.92,0.00013808,2]
[361597062,1747630249201,-400.0,0.00013808,2]
[361597063,1747630249211,-858.93,0.00013808,2]
[361597064,1747630249220,-400.0,0.00013808,2]
[361597065,1747630249230,-511.62,0.00013808,2]
[361597066,1747630249240,-458.02,0.00013808,2]
[361597067,1747630249249,-1167.24,0.00013808,2]
[361597068,1747630249259,-400.0,0.00013808,2]
[361597069,1747630249269,-400.0,0.00013808,2]
[361597070,1747630249278,-909.42,0.00013808,2]
[361597071,1747630249290,-400.0,0.00013808,2]
[361597072,1747630249300,-400.0,0.00013808,2]
[361597073,1747630249310,-660.35,0.00013808,2]
[361597074,1747630249319,-400.0,0.00013808,2]
[361597075,1747630249328,-400.0,0.00013808,2]
[361597076,1747630249338,-400.0,0.00013808,2]
[361597077,1747630249347,-828.4,0.00013808,2]
[361597078,1747630249356,-400.0,0.00013808,2]
[361597079,1747630249365,-997.88,0.00013808,2]
[361597080,1747630249377,-400.0,0.00013808,2]
[361597081,1747630249386,-400.0,0.00013808,2]
[361597082,1747630249396,-594.55,0.00013808,2]
[361597083,1747630249405,-832.18,0.00013808,2]
[361597084,1747630249414,-400.0,0.00013808,2]
[361597085,1747630249424,-400.0,0.00013808,2]
[361597086,1747630249433,-400.0,0.00013808,2]
[361597087,1747630249442,-778.48,0.00013808,2]
[361597088,1747630249451,-519.95,0.00013808,2]
[361597089,1747630249460,-1149.79,0.00013808,2]
[361597090,1747630249469,-400.0,0.00013808,2]
[361597091,1747630249480,-400.0,0.00013808,2]
[361597092,1747630249490,-400.0,0.00013808,2]
[361597093,1747630249500,-516.38,0.00013808,2]
[361597094,1747630249512,-1511.1,0.00013808,2]
[361597095,1747630249523,-400.0,0.00013808,2]
[361597096,1747630249533,-452.31,0.00013808,2]
[361597097,1747630249543,-400.0,0.00013808,2]
[361597098,1747630249553,-764.16,0.00013808,2]
[361597099,1747630249563,-400.0,0.00013808,2]
[361597100,1747630249574,-575.65,0.00013808,2]
[361597101,1747630249584,-400.0,0.00013808,2]
[361597102,1747630249596,-400.0,0.00013808,2]
[361597103,1747630249605,-400.0,0.00013808,2]
[361597104,1747630249615,-849.39,0.00013808,2]
[361597105,1747630249624,-400.0,0.00013808,2]
[361597106,1747630249634,-400.0,0.00013808,2]
[361597107,1747630249644,-400.0,0.00013808,2]
[361597108,1747630249653,-400.0,0.00013808,2]
[361597109,1747630249663,-400.0,0.00013808,2]
[361597110,1747630249673,-1169.91,0.00013808,2]
[361597111,1747630249682,-400.0,0.00013808,2]
[361597112,1747630249692,-400.0,0.00013808,2]
[361597113,1747630249702,-608.24,0.00013808,2]
[361597114,1747630249712,-400.0,0.00013808,2]
[361597115,1747630249722,-871.1,0.00013808,2]
[361597116,1747630249731,-815.35,0.00013808,2]
[361597117,1747630249742,-400.0,0.00013808,2]
[361597118,1747630249752,-400.0,0.00013808,2]
[361597119,1747630249762,-725.2,0.00013808,2]
[361597120,1747630249772,-400.0,0.00013808,2]
[361597121,1747630249781,-400.0,0.00013808,2]
[361597122,1747630249791,-617.98,0.00013808,2]
[361597123,1747630249800,-400.0,0.00013808,2]
[361597124,1747630249809,-400.0,0.00013808,2]
[361597125,1747630249818,-509.06,0.00013808,2]
[361597126,1747630249828,-404.89,0.00013808,2]
[361597127,1747630249837,-400.0,0.00013808,2]
[361597128,1747630249846,-649.97,0.00013808,2]
[361597129,1747630249855,-459.1,0.00013808,2]
[361597130,1747630249864,-476.77,0.00013808,2]
[361597131,1747630249875,-400.0,0.00013808,2]
[361597132,1747630249885,-677.61,0.00013808,2]
[361597133,1747630249895,-400.0,0.00013808,2]
[361597134,1747630249904,-400.0,0.00013808,2]
[361597135,1747630249914,-807.49,0.00013808,2]
[361597136,1747630249923,-400.0,0.00013808,2]
[361597137,1747630250256,-400.0,0.00013808,2]
[361597138,1747630250267,-400.0,0.00013808,2]
[361597139,1747630250276,-400.0,0.00013808,2]
[361597140,1747630250286,-400.0,0.00013808,2]
[361597141,1747630250296,-400.0,0.00013808,2]
[361597142,1747630250306,-422.49,0.00013808,2]
[361597143,1747630250316,-730.32,0.00013808,2]
[361597144,1747630250326,-400.0,0.00013808,2]
[361597145,1747630250336,-562.38,0.00013808,2]
[361597146,1747630250346,-755.65,0.00013808,2]
[361597147,1747630250357,-875.68,0.00013808,2]
[361597148,1747630250368,-400.0,0.00013808,2]
[361597149,1747630250379,-400.0,0.00013808,2]
[361597150,1747630250389,-400.0,0.00013808,2]
[361597151,1747630250398,-400.0,0.00013808,2]
[361597152,1747630250409,-521.74,0.00013808,2]
[361597153,1747630250419,-400.0,0.00013808,2]
[361597154,1747630250429,-683.66,0.00013808,2]
[361597155,1747630250439,-400.0,0.00013808,2]
[361597156,1747630250448,-400.0,0.00013808,2]
[361597157,1747630250458,-400.0,0.00013808,2]
[361597158,1747630250467,-424.21,0.00013808,2]
[361597159,1747630250476,-400.0,0.00013808,2]
[361597160,1747630250486,-487.13,0.00013808,2]
[361597161,1747630250495,-400.0,0.00013808,2]
[361597162,1747630250504,-400.0,0.00013808,2]
[361597163,1747630250513,-400.0,0.00013808,2]
[361597164,1747630250522,-400.0,0.00013808,2]
[361597165,1747630250531,-402.16928395,0.00013808,2]
[361597166,1747630250541,-400.0,0.00013808,2]
[361597167,1747630250550,-400.0,0.00013808,2]
[361597168,1747630250559,-563.23,0.00013808,2]
[361597169,1747630250568,-400.0,0.00013808,2]
[361597170,1747630250577,-400.0,0.00013808,2]
[361597171,1747630250586,-400.0,0.00013808,2]
[361597172,1747630250595,-1843.35,0.00013808,2]
[361597173,1747630250604,-400.0,0.00013808,2]
[361597174,1747630250613,-499.32,0.00013808,2]
[361597175,1747630250622,-3699.98,0.00013808,2]
[361597176,1747630250633,-400.0,0.00013808,2]
[361597177,1747630250642,-2219.14,0.00013808,2]
[361597178,1747630250652,-523.69,0.00013808,2]
[361597179,1747630250661,-400.0,0.00013808,2]
[361597180,1747630250671,-400.0,0.00013808,2]
[361597181,1747630250680,-400.0,0.00013808,2]
[361597182,1747630250689,-1804.41,0.00013808,2]
[361597183,1747630250698,-1122.48,0.00013808,2]
[361597184,1747630250708,-400.0,0.00013808,2]
[361597185,1747630250717,-400.0,0.00013808,2]
[361597186,1747630250726,-461.48,0.00013808,2]
[361597187,1747630250735,-544.4,0.00013808,2]
[361597188,1747630250744,-400.0,0.00013808,2]
[361597189,1747630250753,-2052.18,0.00013808,2]
[361597190,1747630250762,-400.0,0.00013808,2]
[361597191,1747630250771,-769.9,0.00013808,2]
[361597192,1747630250780,-1488.7,0.00013808,2]
[361597193,1747630250789,-454.44,0.00013808,2]
[361597194,1747630250798,-400.0,0.00013808,2]
[361597195,1747630250807,-1031.7,0.00013808,2]
[361597196,1747630250816,-1363.5,0.00013808,2]
[361597197,1747630250826,-573.09,0.00013808,2]
[361597198,1747630250835,-400.0,0.00013808,2]
[361597199,1747630250844,-208.98427198,0.00013808,2]
[361597200,1747630250853,-2191.44,0.00013808,2]
[361597201,1747630250862,-1130.11,0.00013808,2]
[361597202,1747630250872,-400.0,0.00013808,2]
[361597203,1747630250885,-400.0,0.00013808,2]
[361597204,1747630250894,-822.35,0.00013808,2]
[361597205,1747630250903,-918.08,0.00013808,2]
[361597206,1747630250913,-651.23,0.00013808,2]
[361597207,1747630250922,-400.0,0.00013808,2]
[361597208,1747630250931,-545.65,0.00013808,2]
[361597209,1747630250941,-400.0,0.00013808,2]
[361597210,1747630250950,-2096.6,0.00013808,2]
[361597211,1747630250959,-400.0,0.00013808,2]
[361597212,1747630250969,-526.84,0.00013808,2]
[361597213,1747630250978,-669.97,0.00013808,2]
[361597214,1747630250988,-400.0,0.00013808,2]
[361597215,1747630250997,-400.0,0.00013808,2]
[361597216,1747630251007,-400.0,0.00013808,2]
[361597217,1747630251016,-717.81,0.00013808,2]
[361597218,1747630251026,-818.27,0.00013808,2]
[361597219,1747630251036,-1656.75,0.00013808,2]
[361597220,1747630251049,-492.48,0.00013808,2]
[361597221,1747630251058,-6231.03,0.00013808,2]
[361597222,1747630251067,-400.0,0.00013808,2]
[361597223,1747630251077,-1205.9,0.00013808,2]
[361597224,1747630251089,-1023.75,0.00013808,2]
[361597225,1747630251098,-997.25,0.00013808,2]
[361597226,1747630251108,-414.32,0.00013808,2]
[361597227,1747630251119,-487.85,0.00013808,2]
[361597228,1747630251131,-400.0,0.00013808,2]
[361597229,1747630251140,-3241.64,0.00013808,2]
[361597230,1747630251149,-400.0,0.00013808,2]
[361597231,1747630251159,-250.0,0.00013808,2]
[361597232,1747630251168,-709.72,0.00013808,2]
[361597233,1747630251178,-6203.43,0.00013808,2]
[361597234,1747630251189,-400.0,0.00013808,2]
[361597235,1747630251198,-857.4,0.00013808,2]
[361597236,1747630251208,-998.64,0.00013808,2]
[361597237,1747630251218,-1088.3,0.00013808,2]
[361597238,1747630251227,-486.75,0.00013808,2]
[361597239,1747630251237,-400.0,0.00013808,2]
[361597240,1747630251246,-400.0,0.00013808,2]
[361597241,1747630251255,-400.0,0.00013808,2]
[361597242,1747630251264,-466.24,0.00013808,2]
[361597243,1747630251273,-4868.72562429,0.00013808,2]
[361597244,1747630251414,-400.0,0.00013698,2]
[361597245,1747630251423,-1119.11437571,0.00013808,2]
[361597246,1747630251433,-400.0,0.00013808,2]
[361597247,1747630251442,-524.4,0.00013808,2]
[361597248,1747630251451,-269.403128,0.00013808,2]
[361597249,1747630252062,-130.596872,0.00013808,2]
[361597250,1747630252072,-507.22107282,0.00013808,2]
[361597251,1747630252083,-2696.30366374,0.00013808,2]
[361597252,1747630252234,-294.30633538,0.00013698,2]
[361597253,1747630252246,-105.69366462,0.00013698,2]
[361597254,1747630252256,-378.86428938,0.00013698,2]
[361597255,1747630252420,-21.7097748,0.00013698,2]
[361597256,1747630252430,-144.99526344,0.00013808,2]
[361597257,1747630252439,-148.59394407,0.00013808,2]
[361597258,1747630265586,1500.0,0.0002739,120]
[361597259,1747630370238,-217.25474752,0.00012866,2]
[361597260,1747630375689,-175.29374728,0.00012866,2]
[361597261,1747630379290,-158.66391009,0.00012866,2]
[361597262,1747630429068,200.0,0.000137,5]
[361597263,1747630431159,200.0,0.000138,5]
[361597264,1747630433256,200.0,0.000139,5]
[361597265,1747630477682,544.02,0.00010876,2]
[361597266,1747630644002,6046.574493,0.0001,2]
[361597267,1747630781544,-272.86357278,0.00012145,2]
[361597268,1747630784243,-277.95642722,0.00012145,2]
[361597274,1747630929440,403.0,0.00027397,120]
[361597275,1747631026618,-200.0,0.00012184,2]
[361597276,1747631030091,-313.29717659,0.00012184,2]
[361597277,1747631079283,150.0,0.00014,5]
[361597278,1747631233136,-1000.0,0.00012169,2]
[361597279,1747631233161,-128.25282341,0.00012184,2]
[361597280,1747631233183,-200.0,0.00012408,2]
[361597281,1747631233203,-177.75362238,0.00012632,2]
[361597282,1747631233224,-361.06,0.00012719,2]
[361597283,1747631233251,-361.06,0.00012722,2]
[361597284,1747631233273,-2.72162742,0.00012725,2]
[361597285,1747631234826,200.0,0.000137,5]
[361597286,1747631235122,-358.33837258,0.00012725,2]
[361597287,1747631235143,-361.06,0.00012729,2]
[361597288,1747631235168,-54.12401437,0.00012732,2]
[361597289,1747631236991,200.0,0.000138,5]
[361597290,1747631239039,200.0,0.000139,5]
[361597291,1747631243542,400.0,0.00014,5]
[361597292,1747631334647,198.0,0.00014,5]
[361597293,1747631336338,198.0,0.00014,5]
[361597294,1747631361672,-3490.79062834,0.00012262,2]
[361597295,1747631363083,-248.27937166,0.00012262,2]
[361597296,1747631363105,-200.0,0.00012497,2]
[361597297,1747631368674,198.0,0.000126,2]
[361597300,1747631380647,199.83,0.000126,2]
[361597301,1747631400626,1064.37089224,0.00013806,5]
[361597302,1747631400663,1064.37089224,0.00013806,5]
[361597303,1747631400721,1064.37089224,0.00013807,5]
[361597304,1747631408511,150.0,0.0001223,2]
[361597305,1747631426054,534.01951969,0.00012219,2]
[361597306,1747631426074,155.02048031,0.00012219,2]
[361597312,1747631432049,-200.0,0.00012642,2]
[361597313,1747631432058,-202.0,0.00012679,2]
[361597314,1747631432067,-181.18548524,0.000127,2]
[361597315,1747631432078,-16.81451476,0.000127,2]
[361597316,1747631432095,-198.0,0.000127,2]
[361597317,1747631432106,-349.59892637,0.00012727,2]
[361597318,1747631432115,-306.93598563,0.00012732,2]
[361597319,1747631432124,-361.06,0.00012735,2]
[361597320,1747631432133,-361.06,0.00012739,2]
[361597321,1747631432142,-361.06,0.00012742,2]
[361597322,1747631432151,-361.06,0.00012745,2]
[361597323,1747631432161,-361.06,0.00012749,2]
[361597324,1747631432170,-361.06,0.00012752,2]
[361597325,1747631432179,-168.49,0.00012754,2]
[361597326,1747631432188,-794.93,0.00012754,2]
[361597327,1747631432197,-361.06,0.00012755,2]
[361597328,1747631432206,-361.06,0.00012759,2]
[361597329,1747631432215,-361.06,0.00012762,2]
[361597330,1747631432225,-361.06,0.00012765,2]
[361597331,1747631432234,-361.06,0.00012769,2]
[361597332,1747631432243,-361.06,0.00012772,2]
[361597333,1747631432253,-1200.0,0.00012773,2]
[361597334,1747631432262,-40.14894624,0.00012774,3]
[361597335,1747631432281,-459.85105376,0.00012774,3]
[361597336,1747631432291,-84.16894624,0.00012776,2]
[361597337,1747631432322,-276.89105376,0.00012776,2]
[361597338,1747631432333,-361.06,0.00012779,2]
[361597339,1747631432342,-300.0,0.00012781,2]
[361597340,1747631432351,-150.0,0.00012782,2]
[361597342,1747631432360,-361.06,0.00012782,2]
[361597343,1747631432369,-149.12947243,0.00012893,2]
[361597347,1747631432399,-1001.24052757,0.00012893,2]
[361597349,1747631432408,-250.94140291,0.00012898,2]
[361597351,1747631432417,-513.95,0.00013,2]
[361597352,1747631432427,-1134.33054106,0.00013,2]
[361597354,1747631432438,-322.98459677,0.00013,2]
[361597355,1747631432533,-3036.43343915,0.00013,2]
[361597356,1747631432546,-2961.39798272,0.00013,2]
[361597357,1747631432557,-411.8444199,0.00013,2]
[361597358,1747631432569,-1120.50617432,0.00013,2]
[361597359,1747631432578,-97.94382568,0.00013038,2]
[361597360,1747631432589,-2056.054,0.00013038,2]
[361597365,1747631437999,-2274.40999996,0.00013038,2]
[361597366,1747631438011,-65.3407513,0.00013038,2]
[361597367,1747631438020,-200.0,0.000131,4]
[361597368,1747631438030,-1271.1792487,0.00013107,2]
[361597369,1747631438042,-1160.31762066,0.00013107,2]
[361597370,1747631438055,-2062.25170758,0.00013107,2]
[361597371,1747631438066,-544.02,0.0001314,2]
[361597372,1747631438076,-2523.72829242,0.00013176,2]
[361597373,1747631438107,-1013.88322961,0.00013176,2]
[361597374,1747631438170,-377.58321126,0.00013176,2]
[361597375,1747631438181,-514.45,0.00013176,2]
[361597376,1747631438193,-64.10384365,0.00013176,2]
[361597377,1747631438203,-170.07,0.00013178,2]
[361597378,1747631438212,-170.44,0.00013178,2]
[361597379,1747631438222,-500.0,0.000132,4]
[361597380,1747631438231,-151.0,0.00013222,2]
[361597381,1747631438241,-155.0,0.00013222,2]
[361597382,1747631438252,-207.4,0.00013222,2]
[361597383,1747631438261,-577.04063781,0.00013222,2]
[361597384,1747631438271,-3168.07194334,0.00013245,2]
[361597385,1747631438283,-316.73,0.00013245,2]
[361597386,1747631438294,-790.44402529,0.00013245,2]
[361597387,1747631438318,-218.50260831,0.00013245,2]
[361597388,1747631438328,-204.24739094,0.00013278,2]
[361597389,1747631438346,-478.736916,0.00013278,2]
[361597440,1747631440184,-497.78569306,0.00013278,2]
[361597441,1747631440194,-150.0,0.00013278,2]
[361597442,1747631440204,-595.88,0.00013278,2]
[361597443,1747631440214,-150.0,0.00013278,2]
[361597444,1747631440223,-170.07,0.00013278,2]
[361597445,1747631440233,-170.07,0.00013278,2]
[361597446,1747631440242,-700.0,0.000133,4]
[361597447,1747631440252,-4353.39827413,0.00013314,2]
[361597448,1747631440266,-140.35030281,0.00013314,2]
[361597449,1747631440280,-2738.67412984,0.00013383,2]
[361597450,1747631440407,-141.21305332,0.00013383,2]
[361597451,1747631440418,-1613.86139378,0.00013383,2]
[361597452,1747631440427,-1000.0,0.000134,4]
[361597453,1747631440436,-200.0,0.00013402,2]
[361597454,1747631440446,-2336.64237222,0.00013452,2]
[361597455,1747631440561,-569.9999999,0.00013452,2]
[361597456,1747631440572,-1587.10620482,0.00013452,2]
[361597457,1747631440581,-200.0,0.00013488,2]
[361597458,1747631440591,-272.29379518,0.000135,4]
[361597459,1747631440605,-288.70511707,0.000135,4]
[361597460,1747631440623,-739.00108775,0.000135,4]
[361597461,1747631440632,-81.54501009,0.00013521,2]
[361597464,1747631440649,-455.07772581,0.00013521,2]
[361597466,1747631440661,-3957.12584104,0.00013521,2]
[361597468,1747631440670,-763.3098683,0.00013587,2]
[361597470,1747631440679,-448.08,0.00013589,2]
[361597472,1747631440689,-150.82,0.00013589,2]
[361597474,1747631440698,-4493.74857694,0.0001359,2]
[361597476,1747631440707,-3030.29837506,0.00013598,2]
[361597478,1747631440716,-169.11500598,0.00013598,2]
[361597480,1747631440725,-2008.51542961,0.00013598,2]
[361597482,1747631440734,-374.7638,0.00013598,2]
[361597484,1747631440743,-200.0,0.000136,4]
[361597486,1747631440752,-3030.29837502,0.00013632,2]
[361597488,1747631440761,-2008.51542958,0.00013632,2]
[361597490,1747631440770,-4493.74857694,0.00013659,2]
[361597492,1747631440780,-500.0,0.00013664,2]
[361597494,1747631440789,-500.0,0.00013664,2]
[361597496,1747631440798,-500.0,0.00013664,2]
[361597498,1747631440807,-500.0,0.00013664,2]
[361597500,1747631440816,-500.0,0.00013664,2]
[361597502,1747631440825,-500.0,0.00013664,2]
[361597504,1747631440834,-497.37754765,0.00013664,2]
[361597506,1747631440844,-500.0,0.00013664,2]
[361597507,1747631440853,-500.0,0.00013664,2]
[361597509,1747631440862,-500.0,0.00013664,2]
[361597510,1747631440871,-500.0,0.00013664,2]
[361597511,1747631440880,-500.0,0.00013664,2]
[361597512,1747631440889,-500.0,0.00013664,2]
[361597513,1747631440899,-500.0,0.00013664,2]
[361597514,1747631440908,-500.0,0.00013664,2]
[361597515,1747631440917,-500.0,0.00013664,2]
[361597516,1747631440926,-500.0,0.00013664,2]
[361597517,1747631440935,-543.98757885,0.00013664,2]
[361597518,1747631440944,-500.0,0.00013664,2]
[361597519,1747631440954,-500.0,0.00013664,2]
[361597520,1747631440963,-500.0,0.00013664,2]
[361597521,1747631440972,-500.0,0.00013664,2]
[361597522,1747631440981,-500.0,0.00013664,2]
[361597523,1747631440990,-500.0,0.00013664,2]
[361597524,1747631440999,-500.0,0.00013664,2]
[361597525,1747631441008,-3030.29837502,0.00013665,2]
[361597526,1747631441017,-2008.51542958,0.00013665,2]
[361597527,1747631441026,-304.95688997,0.00013673,2]
[361597528,1747631441035,-500.0,0.00013673,2]